fUST/lending_fUST_20250901
["ID","MTS","AMOUNT","RATE_DAILY","PERIOD"]
[382708432,1756715453794,-480.0,0.00014794,2]
[382708433,1756715453804,-480.0,0.00014794,2]
[382708434,1756715453813,-480.0,0.00014794,2]
[382708435,1756715453823,-480.0,0.00014794,2]
[382708436,1756715453833,-480.0,0.00014794,2]
[382708437,1756715453843,-504.55,0.00014794,2]
[382708438,1756715453855,-480.0,0.00014794,2]
[382708439,1756715453866,-480.0,0.00014794,2]
[382708440,1756715453875,-480.0,0.00014794,2]
[382708441,1756715453886,-481.67,0.00014794,2]
[382708442,1756715453895,-615.35,0.00014794,2]
[382708443,1756715453905,-1707.93,0.00014794,2]
[382708444,1756715453915,-493.17,0.00014794,2]
[382708445,1756715453925,-480.0,0.00014794,2]
[382708446,1756715453934,-613.45,0.00014794,2]
[382708447,1756715453943,-480.0,0.00014794,2]
[382708448,1756715453953,-480.0,0.00014794,2]
[382708449,1756715453962,-649.59,0.00014794,2]
[382708450,1756715453972,-816.64,0.00014794,2]
[382708451,1756715453981,-880.75,0.00014794,2]
[382708452,1756715453991,-1126.43,0.00014794,2]
[382708453,1756715453999,-649.64,0.00014794,2]
[382708454,1756715454009,-527.50644784,0.00014794,2]
[382708455,1756715454019,-751.98,0.00014794,2]
[382708456,1756715454028,-480.0,0.00014794,2]
[382708457,1756715454038,-480.0,0.00014794,2]
[382708458,1756715454047,-480.0,0.00014794,2]
[382708459,1756715454056,-1758.61,0.00014794,2]
[382708460,1756715454065,-499.29,0.00014794,2]
[382708461,1756715454075,-802.95,0.00014794,2]
[382708462,1756715454084,-518.35,0.00014794,2]
[382708463,1756715454093,-480.0,0.00014794,2]
[382708464,1756715454107,-978.82,0.00014794,2]
[382708465,1756715454116,-480.0,0.00014794,2]
[382708466,1756715454126,-623.77,0.00014794,2]
[382708467,1756715454135,-480.0,0.00014794,2]
[382708468,1756715454146,-480.0,0.00014794,2]
[382708469,1756715454155,-1044.86,0.00014794,2]
[382708470,1756715454165,-480.0,0.00014794,2]
[382708471,1756715454174,-480.0,0.00014794,2]
[382708472,1756715454186,-727.65,0.00014794,2]
[382708473,1756715454196,-3172.44,0.00014794,2]
[382708474,1756715454206,-480.0,0.00014794,2]
[382708475,1756715454215,-501.46562406,0.00014821,2]
[382708476,1756715454224,-1000.0,0.00014821,2]
[382708477,1756715454234,-911.35121586,0.00014821,2]
[382708478,1756715454243,-1000.0,0.00014821,2]
[382708479,1756715454253,-1000.0,0.00014821,2]
[382708480,1756715454263,-252.53007301,0.00014821,2]
[382708481,1756715454273,-253.8454926,0.00014821,2]
[382708482,1756715454323,-562.38897382,0.00014821,2]
[382708483,1756715454332,-164.89562748,0.00014821,2]
[382708484,1756715454342,-714.91044673,0.00014821,2]
[382708485,1756715454352,-1000.0,0.00014821,2]
[382708486,1756715454361,-1000.0,0.00014821,2]
[382708487,1756715454369,-205.40797016,0.00014824,2]
[382708488,1756715454379,-607.72,0.00014825,2]
[382708489,1756715454388,-480.0,0.00014825,2]
[382708490,1756715454398,-480.0,0.00014825,2]
[382708491,1756715454408,-480.0,0.00014825,2]
[382708492,1756715454418,-480.0,0.00014825,2]
[382708493,1756715454427,-480.0,0.00014825,2]
[382708494,1756715454437,-480.0,0.00014825,2]
[382708495,1756715454447,-480.0,0.00014825,2]
[382708496,1756715454456,-480.0,0.00014825,2]
[382708497,1756715454466,-480.0,0.00014825,2]
[382708498,1756715454476,-480.0,0.00014825,2]
[382708499,1756715454485,-661.59,0.00014825,2]
[382708500,1756715454495,-212.47365829,0.00014825,2]
[382708501,1756715454504,-480.0,0.00014825,2]
[382708502,1756715454514,-566.32,0.00014825,2]
[382708503,1756715454526,-480.0,0.00014825,2]
[382708504,1756715454535,-480.0,0.00014825,2]
[382708505,1756715454545,-480.0,0.00014825,2]
[382708506,1756715454555,-480.0,0.00014825,2]
[382708507,1756715454565,-480.0,0.00014825,2]
[382708508,1756715454575,-782.67,0.00014825,2]
[382708509,1756715454584,-770.74,0.00014825,2]
[382708510,1756715454594,-848.32,0.00014825,2]
[382708511,1756715454604,-480.0,0.00014825,2]
[382708512,1756715454614,-480.0,0.00014825,2]
[382708513,1756715454624,-480.0,0.00014825,2]
[382708514,1756715454635,-251.02172677,0.00014825,2]
[382708515,1756715454647,-730.25,0.00014825,2]
[382708516,1756715454657,-518.0,0.00014825,2]
[382708517,1756715454666,-480.0,0.00014825,2]
[382708518,1756715454676,-480.0,0.00014825,2]
[382708519,1756715454686,-831.49,0.00014825,2]
[382708520,1756715454696,-190.65818524,0.00014825,2]
[382708521,1756715454706,-480.0,0.00014825,2]
[382708522,1756715454715,-1367.88,0.00014825,2]
[382708523,1756715454727,-794.55,0.00014825,2]
[382708524,1756715454737,-547.88,0.00014825,2]
[382708525,1756715454746,-480.0,0.00014825,2]
[382708526,1756715454756,-867.37,0.00014825,2]
[382708527,1756715454767,-480.0,0.00014825,2]
[382708528,1756715454776,-842.33,0.00014825,2]
[382708529,1756715454785,-480.0,0.00014825,2]
[382708530,1756715454795,-480.0,0.00014825,2]
[382708531,1756715454804,-1015.11,0.00014825,2]
[382708532,1756715454813,-796.2,0.00014825,2]
[382708533,1756715454822,-480.0,0.00014825,2]
[382708534,1756715454831,-537.88,0.00014825,2]
[382708535,1756715454840,-480.0,0.00014825,2]
[382708536,1756715454850,-480.0,0.00014825,2]
[382708537,1756715454858,-1051.37,0.00014825,2]
[382708538,1756715454867,-1198.79,0.00014825,2]
[382708539,1756715454876,-480.0,0.00014825,2]
[382708540,1756715454885,-480.0,0.00014825,2]
[382708541,1756715454894,-480.0,0.00014825,2]
[382708542,1756715454904,-480.0,0.00014825,2]
[382708543,1756715454914,-685.84,0.00014825,2]
[382708544,1756715454927,-4968.03,0.00014825,2]
[382708545,1756715454937,-616.0,0.00014825,2]
[382708546,1756715454948,-480.0,0.00014825,2]
[382708547,1756715454958,-480.0,0.00014825,2]
[382708548,1756715454967,-480.0,0.00014825,2]
[382708549,1756715454976,-480.0,0.00014825,2]
[382708550,1756715454985,-1140.01,0.00014825,2]
[382708551,1756715454994,-480.0,0.00014825,2]
[382708552,1756715455003,-4212.6,0.00014825,2]
[382708553,1756715455015,-754.88,0.00014825,2]
[382708554,1756715455024,-1068.24,0.00014825,2]
[382708555,1756715455033,-713.22,0.00014825,2]
[382708556,1756715455042,-1711.94,0.00014825,2]
[382708557,1756715455051,-481.71634681,0.00014825,2]
[382708558,1756715455060,-1496.1,0.00014825,2]
[382708559,1756715455069,-1072.53,0.00014825,2]
[382708560,1756715455078,-998.65,0.00014825,2]
[382708561,1756715455087,-4710.62,0.00014825,2]
[382708562,1756715455097,-480.0,0.00014825,2]
[382708563,1756715455108,-496.12,0.00014825,2]
[382708564,1756715455118,-2204.11,0.00014825,2]
[382708565,1756715455128,-538.77,0.00014825,2]
[382708566,1756715455137,-480.0,0.00014825,2]
[382708567,1756715455146,-480.0,0.00014825,2]
[382708568,1756715455156,-480.0,0.00014825,2]
[382708569,1756715455165,-480.0,0.00014825,2]
[382708570,1756715455175,-1070.26,0.00014825,2]
[382708571,1756715455184,-584.52,0.00014825,2]
[382708572,1756715455194,-582.13,0.00014825,2]
[382708573,1756715455203,-1289.62,0.00014825,2]
[382708574,1756715455212,-2855.47,0.00014825,2]
[382708575,1756715455222,-480.0,0.00014825,2]
[382708576,1756715455231,-480.0,0.00014825,2]
[382708577,1756715455241,-964.11,0.00014826,2]
[382708578,1756715455251,-194.36,0.00014826,2]
[382708579,1756715455263,-480.0,0.00014826,2]
[382708580,1756715455272,-480.0,0.00014826,2]
[382708581,1756715455282,-480.0,0.00014826,2]
[382708582,1756715455292,-480.0,0.00014826,2]
[382708583,1756715455301,-480.0,0.00014826,2]
[382708584,1756715455310,-480.0,0.00014826,2]
[382708585,1756715455319,-480.0,0.00014826,2]
[382708586,1756715455329,-829.79,0.00014826,2]
[382708587,1756715455338,-480.0,0.00014826,2]
[382708588,1756715455348,-527.41,0.00014826,2]
[382708589,1756715455357,-480.0,0.00014826,2]
[382708590,1756715455366,-480.0,0.00014826,2]
[382708591,1756715455376,-480.0,0.00014826,2]
[382708592,1756715455385,-480.0,0.00014826,2]
[382708593,1756715455394,-480.0,0.00014826,2]
[382708594,1756715455404,-691.88,0.00014826,2]
[382708595,1756715455414,-480.0,0.00014826,2]
[382708596,1756715455423,-480.0,0.00014826,2]
[382708597,1756715455432,-480.0,0.00014826,2]
[382708598,1756715455442,-480.0,0.00014826,2]
[382708599,1756715455451,-480.0,0.00014826,2]
[382708600,1756715455460,-480.0,0.00014826,2]
[382708601,1756715455469,-472.43239006,0.00014826,2]
[382708602,1756715455478,-482.11932971,0.00014826,2]
[382708603,1756715455487,-480.0,0.00014826,2]
[382708604,1756715455497,-480.0,0.00014826,2]
[382708605,1756715455506,-480.0,0.00014826,2]
[382708606,1756715455517,-608.7,0.00014826,2]
[382708607,1756715455528,-480.0,0.00014826,2]
[382708608,1756715455537,-480.0,0.00014826,2]
[382708609,1756715455546,-480.0,0.00014826,2]
[382708610,1756715455556,-832.89,0.00014826,2]
[382708611,1756715455565,-480.0,0.00014826,2]
[382708612,1756715455574,-823.14,0.00014826,2]
[382708613,1756715455584,-925.86,0.00014826,2]
[382708614,1756715455593,-661.89,0.00014826,2]
[382708615,1756715455602,-480.0,0.00014826,2]
[382708616,1756715455611,-480.0,0.00014826,2]
[382708617,1756715455620,-403.93639956,0.00014826,2]
[382708618,1756715455629,-480.0,0.00014826,2]
[382708619,1756715455638,-480.0,0.00014826,2]
[382708620,1756715455647,-480.0,0.00014826,2]
[382708621,1756715455656,-480.0,0.00014826,2]
[382708622,1756715455665,-480.0,0.00014826,2]
[382708623,1756715455675,-480.0,0.00014826,2]
[382708624,1756715455684,-494.09,0.00014826,2]
[382708625,1756715455693,-484.53,0.00014826,2]
[382708626,1756715455703,-480.0,0.00014826,2]
[382708627,1756715455712,-539.64625156,0.00014826,2]
[382708628,1756715455722,-480.0,0.00014826,2]
[382708629,1756715455731,-480.0,0.00014826,2]
[382708630,1756715455740,-480.0,0.00014826,2]
[382708631,1756715455749,-495.92515956,0.00014826,2]
[382708632,1756715455758,-480.0,0.00014826,2]
[382708633,1756715455769,-480.0,0.00014826,2]
[382708634,1756715455778,-690.31,0.00014826,2]
[382708635,1756715455787,-688.89,0.00014826,2]
[382708636,1756715455796,-480.0,0.00014826,2]
[382708637,1756715455805,-480.0,0.00014826,2]
[382708638,1756715455815,-480.0,0.00014826,2]
[382708639,1756715455824,-659.7,0.00014826,2]
[382708640,1756715455833,-480.0,0.00014826,2]
[382708641,1756715455842,-713.66,0.00014826,2]
[382708642,1756715455852,-480.0,0.00014826,2]
[382708643,1756715455861,-1270.37,0.00014826,2]
[382708644,1756715455871,-480.0,0.00014826,2]
[382708645,1756715455881,-480.0,0.00014826,2]
[382708646,1756715455890,-480.0,0.00014826,2]
[382708647,1756715455899,-480.0,0.00014826,2]
[382708648,1756715455908,-486.23,0.00014826,2]
[382708649,1756715455917,-480.0,0.00014826,2]
[382708650,1756715455927,-480.0,0.00014826,2]
[382708651,1756715455936,-480.0,0.00014826,2]
[382708652,1756715455946,-480.0,0.00014827,2]
[382708653,1756715455955,-480.0,0.00014827,2]
[382708654,1756715455964,-480.0,0.00014827,2]
[382708655,1756715455974,-575.17,0.00014827,2]
[382708656,1756715455983,-637.52,0.00014827,2]
[382708657,1756715455992,-827.59,0.00014827,2]
[382708658,1756715456002,-480.0,0.00014827,2]
[382708659,1756715456011,-480.0,0.00014827,2]
[382708660,1756715456021,-480.0,0.00014827,2]
[382708661,1756715456030,-480.0,0.00014827,2]
[382708662,1756715456039,-480.0,0.00014828,2]
[382708663,1756715456049,-480.0,0.00014828,2]
[382708664,1756715456058,-480.0,0.00014828,2]
[382708665,1756715456068,-649.94,0.00014828,2]
[382708666,1756715456077,-480.0,0.00014828,2]
[382708667,1756715456086,-610.42,0.00014828,2]
[382708668,1756715456095,-480.0,0.00014828,2]
[382708669,1756715456107,-480.0,0.00014828,2]
[382708670,1756715456117,-480.0,0.00014828,2]
[382708671,1756715456127,-480.0,0.00014828,2]
[382708672,1756715456136,-480.0,0.00014828,2]
[382708673,1756715456147,-480.0,0.00014828,2]
[382708674,1756715456156,-480.0,0.00014828,2]
[382708675,1756715456165,-902.41,0.00014828,2]
[382708676,1756715456174,-528.22,0.00014828,2]
[382708677,1756715456184,-480.0,0.00014828,2]
[382708678,1756715456193,-480.0,0.00014828,2]
[382708679,1756715456203,-513.7,0.00014828,2]
[382708680,1756715456212,-480.0,0.00014828,2]
[382708681,1756715456222,-5858.90409333,0.00014855,2]
[382708682,1756715456231,-167.93088547,0.000149,2]
[382708683,1756715456241,-167.93088546,0.000149,2]
[382708684,1756715456251,-167.93088546,0.000149,2]
[382708685,1756715456261,-3000.0,0.00014996,2]
[382708686,1756715456271,-245.0,0.00014997,2]
[382708687,1756715456281,-500.0,0.00014997,2]
[382708688,1756715456291,-245.0,0.00014997,2]
[382708689,1756715456301,-245.0,0.00014997,2]
[382708690,1756715456311,-1253.0,0.00014997,2]
[382708691,1756715456320,-75094.62736541,0.00014998,2]
[382708692,1756715456330,-12073.1004233,0.00015,2]
[382708693,1756715456340,-151.0,0.00015,2]
[382708694,1756715456350,-151.0,0.00015,2]
[382708695,1756715456360,-160.0,0.00015,2]
[382708696,1756715456369,-480.0,0.00015,2]
[382708697,1756715456379,-480.0,0.00015,2]
[382708698,1756715456388,-783.78,0.00015,2]
[382708699,1756715456398,-1290.17,0.00015,2]
[382708700,1756715456407,-480.0,0.00015,2]
[382708701,1756715456416,-480.0,0.00015,2]
[382708702,1756715456426,-480.0,0.00015,2]
[382708703,1756715456436,-975.0,0.00015011,2]
[382708704,1756715456446,-632.0,0.00015011,2]
[382708705,1756715456455,-2153.0,0.00015011,2]
[382708706,1756715456465,-409.0,0.00015011,2]
[382708707,1756715456474,-423.777,0.00015011,2]
[382708708,1756715456484,-480.0,0.00015068,2]
[382708709,1756715456494,-480.0,0.00015068,2]
[382708710,1756715456503,-480.0,0.00015068,2]
[382708711,1756715456514,-658.99,0.00015068,2]
[382708712,1756715456523,-771.36,0.00015068,2]
[382708713,1756715456533,-480.0,0.00015068,2]
[382708714,1756715456544,-480.0,0.00015068,2]
[382708715,1756715456555,-480.0,0.00015068,2]
[382708716,1756715456566,-480.0,0.00015068,2]
[382708717,1756715456575,-781.18,0.00015068,2]
[382708718,1756715456584,-600.69,0.00015068,2]
[382708719,1756715456593,-480.0,0.00015068,2]
[382708720,1756715456603,-480.0,0.00015068,2]
[382708721,1756715456612,-480.0,0.00015068,2]
[382708722,1756715456622,-480.0,0.00015068,2]
[382708723,1756715456632,-480.0,0.00015068,2]
[382708724,1756715456641,-504.55,0.00015068,2]
[382708725,1756715456651,-480.0,0.00015068,2]
[382708726,1756715456660,-480.0,0.00015068,2]
[382708727,1756715456670,-480.0,0.00015068,2]
[382708728,1756715456679,-481.67,0.00015068,2]
[382708729,1756715456688,-615.35,0.00015068,2]
[382708730,1756715456698,-1707.93,0.00015068,2]
[382708731,1756715456708,-493.17,0.00015068,2]
[382708732,1756715456717,-480.0,0.00015068,2]
[382708733,1756715456726,-613.45,0.00015068,2]
[382708734,1756715456735,-480.0,0.00015068,2]
[382708735,1756715456745,-477.80878983,0.00015068,2]
[382708736,1756715456755,-649.59,0.00015068,2]
[382708737,1756715456764,-816.64,0.00015068,2]
[382708738,1756715456773,-880.75,0.00015068,2]
[382708739,1756715456783,-1126.43,0.00015068,2]
[382708740,1756715456792,-649.64,0.00015068,2]
[382708741,1756715456802,-751.98,0.00015068,2]
[382708742,1756715456812,-480.0,0.00015068,2]
[382708743,1756715456823,-480.0,0.00015068,2]
[382708744,1756715456833,-480.0,0.00015068,2]
[382708745,1756715456842,-1758.61,0.00015068,2]
[382708746,1756715456852,-499.29,0.00015068,2]
[382708747,1756715456862,-802.95,0.00015068,2]
[382708748,1756715456871,-518.35,0.00015068,2]
[382708749,1756715456880,-480.0,0.00015068,2]
[382708750,1756715456890,-978.82,0.00015068,2]
[382708751,1756715456899,-480.0,0.00015068,2]
[382708752,1756715456909,-623.77,0.00015068,2]
[382708753,1756715456919,-480.0,0.00015068,2]
[382708754,1756715456929,-480.0,0.00015068,2]
[382708755,1756715456938,-1044.86,0.00015068,2]
[382708756,1756715456948,-437.79332908,0.00015068,2]
[382708757,1756715456957,-480.0,0.00015068,2]
[382708758,1756715456966,-727.65,0.00015068,2]
[382708759,1756715456976,-3172.44,0.00015068,2]
[382708760,1756715456986,-480.0,0.00015068,2]
[382708761,1756715456995,-2000.0,0.00015068,2]
[382708762,1756715457005,-563.0,0.00015069,2]
[382708763,1756715457015,-563.0,0.00015084,2]
[382708764,1756715457024,-607.72,0.00015099,2]
[382708765,1756715457034,-480.0,0.00015099,2]
[382708766,1756715457043,-480.0,0.00015099,2]
[382708767,1756715457053,-480.0,0.00015099,2]
[382708768,1756715457062,-480.0,0.00015099,2]
[382708769,1756715457072,-480.0,0.00015099,2]
[382708770,1756715457082,-480.0,0.00015099,2]
[382708771,1756715457092,-480.0,0.00015099,2]
[382708772,1756715457103,-480.0,0.00015099,2]
[382708773,1756715457118,-480.0,0.00015099,2]
[382708774,1756715457128,-661.59,0.00015099,2]
[382708775,1756715457138,-566.32,0.00015099,2]
[382708776,1756715457147,-480.0,0.00015099,2]
[382708777,1756715457158,-171.27758612,0.00015099,2]
[382708778,1756715457168,-480.0,0.00015099,2]
[382708779,1756715457177,-480.0,0.00015099,2]
[382708780,1756715457189,-480.0,0.00015099,2]
[382708781,1756715457199,-782.67,0.00015099,2]
[382708782,1756715457209,-770.74,0.00015099,2]
[382708783,1756715457218,-848.32,0.00015099,2]
[382708784,1756715457227,-512.29698968,0.00015099,2]
[382708785,1756715457236,-480.0,0.00015099,2]
[382708786,1756715457247,-480.0,0.00015099,2]
[382708787,1756715457258,-730.25,0.00015099,2]
[382708788,1756715457269,-518.0,0.00015099,2]
[382708789,1756715457280,-480.0,0.00015099,2]
[382708790,1756715457290,-480.0,0.00015099,2]
[382708791,1756715457300,-831.49,0.00015099,2]
[382708792,1756715457309,-480.0,0.00015099,2]
[382708793,1756715457319,-1367.88,0.00015099,2]
[382708794,1756715457328,-794.55,0.00015099,2]
[382708795,1756715457338,-547.88,0.00015099,2]
[382708796,1756715457348,-318.88467507,0.00015099,2]
[382708797,1756715457358,-867.37,0.00015099,2]
[382708798,1756715457368,-480.0,0.00015099,2]
[382708799,1756715457378,-842.33,0.00015099,2]
[382708800,1756715457387,-480.0,0.00015099,2]
[382708801,1756715457397,-480.0,0.00015099,2]
[382708802,1756715457407,-1015.11,0.00015099,2]
[382708803,1756715457418,-796.2,0.00015099,2]
[382708804,1756715457436,-480.0,0.00015099,2]
[382708805,1756715457446,-537.88,0.00015099,2]
[382708806,1756715457455,-480.0,0.00015099,2]
[382708807,1756715457465,-467.4,0.00015099,2]
[382708808,1756715457475,-1051.37,0.00015099,2]
[382708809,1756715457488,-1198.79,0.00015099,2]
[382708810,1756715457498,-480.0,0.00015099,2]
[382708811,1756715457508,-480.0,0.00015099,2]
[382708812,1756715457520,-480.0,0.00015099,2]
[382708813,1756715457531,-685.84,0.00015099,2]
[382708814,1756715457541,-4968.03,0.00015099,2]
[382708815,1756715457550,-480.0,0.00015099,2]
[382708816,1756715457560,-480.0,0.00015099,2]
[382708817,1756715457569,-480.0,0.00015099,2]
[382708818,1756715457579,-480.0,0.00015099,2]
[382708819,1756715457589,-1140.01,0.00015099,2]
[382708820,1756715457599,-597.09570547,0.00015099,2]
[382708821,1756715457608,-4212.6,0.00015099,2]
[382708822,1756715457618,-754.88,0.00015099,2]
[382708823,1756715457628,-1068.24,0.00015099,2]
[382708824,1756715457638,-713.22,0.00015099,2]
[382708825,1756715457647,-1711.94,0.00015099,2]
[382708826,1756715457657,-1496.1,0.00015099,2]
[382708827,1756715457666,-1072.53,0.00015099,2]
[382708828,1756715457676,-998.65,0.00015099,2]
[382708829,1756715457685,-4710.62,0.00015099,2]
[382708830,1756715457695,-251.99158348,0.00015099,2]
[382708831,1756715457705,-496.12,0.00015099,2]
[382708832,1756715457715,-2204.11,0.00015099,2]
[382708833,1756715457724,-538.77,0.00015099,2]
[382708834,1756715457734,-480.0,0.00015099,2]
[382708835,1756715457743,-480.0,0.00015099,2]
[382708836,1756715457753,-480.0,0.00015099,2]
[382708837,1756715457764,-480.0,0.00015099,2]
[382708838,1756715457774,-1070.26,0.00015099,2]
[382708839,1756715457784,-584.52,0.00015099,2]
[382708840,1756715457796,-582.13,0.00015099,2]
[382708841,1756715457806,-1289.62,0.00015099,2]
[382708842,1756715457816,-2855.47,0.00015099,2]
[382708843,1756715457826,-480.0,0.00015099,2]
[382708844,1756715457836,-480.0,0.00015099,2]
[382708845,1756715457846,-964.11,0.000151,2]
[382708846,1756715457855,-602.23237727,0.000151,2]
[382708847,1756715457865,-480.0,0.000151,2]
[382708848,1756715457875,-480.0,0.000151,2]
[382708849,1756715457884,-480.0,0.000151,2]
[382708850,1756715457895,-480.0,0.000151,2]
[382708851,1756715457905,-480.0,0.000151,2]
[382708852,1756715457915,-480.0,0.000151,2]
[382708853,1756715457925,-829.79,0.000151,2]
[382708854,1756715457935,-480.0,0.000151,2]
[382708855,1756715457944,-527.41,0.000151,2]
[382708856,1756715457954,-480.0,0.000151,2]
[382708857,1756715457963,-480.0,0.000151,2]
[382708858,1756715457973,-480.0,0.000151,2]
[382708859,1756715457983,-480.0,0.000151,2]
[382708860,1756715457994,-480.0,0.000151,2]
[382708861,1756715458004,-691.88,0.000151,2]
[382708862,1756715458017,-480.0,0.000151,2]
[382708863,1756715458027,-480.0,0.000151,2]
[382708864,1756715458042,-480.0,0.000151,2]
[382708865,1756715458052,-480.0,0.000151,2]
[382708866,1756715458062,-480.0,0.000151,2]
[382708867,1756715458071,-480.0,0.000151,2]
[382708868,1756715458081,-480.0,0.000151,2]
[382708869,1756715458091,-608.7,0.000151,2]
[382708870,1756715458102,-480.0,0.000151,2]
[382708871,1756715458118,-480.0,0.000151,2]
[382708872,1756715458128,-480.0,0.000151,2]
[382708873,1756715458138,-832.89,0.000151,2]
[382708874,1756715458148,-480.0,0.000151,2]
[382708875,1756715458158,-823.14,0.000151,2]
[382708876,1756715458167,-925.86,0.000151,2]
[382708877,1756715458178,-661.89,0.000151,2]
[382708878,1756715458190,-480.0,0.000151,2]
[382708879,1756715458202,-480.0,0.000151,2]
[382708880,1756715458211,-480.0,0.000151,2]
[382708881,1756715458221,-480.0,0.000151,2]
[382708882,1756715458231,-480.0,0.000151,2]
[382708883,1756715458241,-480.0,0.000151,2]
[382708884,1756715458251,-480.0,0.000151,2]
[382708885,1756715458262,-480.0,0.000151,2]
[382708886,1756715458272,-494.09,0.000151,2]
[382708887,1756715458283,-484.53,0.000151,2]
[382708888,1756715458292,-480.0,0.000151,2]
[382708889,1756715458302,-480.0,0.000151,2]
[382708890,1756715458312,-480.0,0.000151,2]
[382708891,1756715458322,-480.0,0.000151,2]
[382708892,1756715458333,-480.0,0.000151,2]
[382708893,1756715458342,-690.31,0.000151,2]
[382708894,1756715458352,-688.89,0.000151,2]
[382708895,1756715458362,-480.0,0.000151,2]
[382708896,1756715458372,-480.0,0.000151,2]
[382708897,1756715458535,-480.0,0.000151,2]
[382708898,1756715458545,-659.7,0.000151,2]
[382708899,1756715458555,-480.0,0.000151,2]
[382708900,1756715458564,-713.66,0.000151,2]
[382708901,1756715458573,-480.0,0.000151,2]
[382708902,1756715458583,-1270.37,0.000151,2]
[382708903,1756715458592,-569.94630896,0.000151,2]
[382708904,1756715458601,-480.0,0.000151,2]
[382708905,1756715458611,-294.21253812,0.000151,2]
[382708906,1756715458621,-480.0,0.000151,2]
[382708907,1756715458630,-486.23,0.000151,2]
[382708908,1756715458639,-480.0,0.000151,2]
[382708909,1756715458649,-480.0,0.000151,2]
[382708910,1756715458658,-480.0,0.000151,2]
[382708911,1756715458667,-480.0,0.00015101,2]
[382708912,1756715458677,-480.0,0.00015101,2]
[382708913,1756715458686,-480.0,0.00015101,2]
[382708914,1756715458695,-575.17,0.00015101,2]
[382708915,1756715458707,-637.52,0.00015101,2]
[382708916,1756715458717,-827.59,0.00015101,2]
[382708917,1756715458727,-480.0,0.00015101,2]
[382708918,1756715458737,-480.0,0.00015101,2]
[382708919,1756715458746,-480.0,0.00015101,2]
[382708920,1756715458755,-480.0,0.00015101,2]
[382708921,1756715458766,-480.0,0.00015102,2]
[382708922,1756715458776,-480.0,0.00015102,2]
[382708923,1756715458786,-480.0,0.00015102,2]
[382708924,1756715458795,-649.94,0.00015102,2]
[382708925,1756715458804,-480.0,0.00015102,2]
[382708926,1756715458814,-610.42,0.00015102,2]
[382708927,1756715458823,-480.0,0.00015102,2]
[382708928,1756715458832,-629.2172538,0.00015102,2]
[382708929,1756715458842,-480.0,0.00015102,2]
[382708930,1756715458851,-480.0,0.00015102,2]
[382708931,1756715458861,-480.0,0.00015102,2]